[Event "Titled Tuesday Blitz January 25 2022"]
[White "Sadovsky, Artem"]
[Black "Urazayev, Arystanbek"]
[WhiteFideId "4155840"]
[BlackFideId "13709810"]
[WhiteElo "2369"]
[BlackElo "2321"]
[Result "0-1"]
[Round "10"]
[TimeControl "180+1"]
[Date "2022.01.26"]
[WhiteClock "0:00:55"]
[BlackClock "0:02:05"]

1. Nf3 {[%clk 0:03:00]}  Nf6 {[%clk 0:02:55]} 2. e3 {[%clk 0:03:00]}  g6 {[%clk 0:02:55]} 3. b3 {[%clk 0:03:00]}  Bg7 {[%clk 0:02:56]} 4. Bb2 {[%clk 0:03:01]}  O-O {[%clk 0:02:57]} 5. c4 {[%clk 0:03:01]}  b6 {[%clk 0:02:56]} 6. Be2 {[%clk 0:03:01]}  Bb7 {[%clk 0:02:56]} 7. O-O {[%clk 0:02:58]}  c5 {[%clk 0:02:56]} 8. d4 {[%clk 0:02:59]}  Ne4 {[%clk 0:02:56]} 9. Nc3 {[%clk 0:02:55]}  d6 {[%clk 0:02:57]} 10. Nxe4 {[%clk 0:02:54]}  Bxe4 {[%clk 0:02:57]} 11. Nd2 {[%clk 0:02:55]}  Bb7 {[%clk 0:02:55]} 12. Bf3 {[%clk 0:02:55]}  Qc7 {[%clk 0:02:54]} 13. Bxb7 {[%clk 0:02:55]}  Qxb7 {[%clk 0:02:55]} 14. Qf3 {[%clk 0:02:55]}  Qxf3 {[%clk 0:02:55]} 15. Nxf3 {[%clk 0:02:56]}  Nc6 {[%clk 0:02:56]} 16. Rfd1 {[%clk 0:02:55]}  cxd4 {[%clk 0:02:55]} 17. Nxd4 {[%clk 0:02:54]}  Rac8 {[%clk 0:02:54]} 18. Nxc6 {[%clk 0:02:53]}  Rxc6 {[%clk 0:02:53]} 19. Bxg7 {[%clk 0:02:54]}  Kxg7 {[%clk 0:02:54]} 20. Rd5 {[%clk 0:02:55]}  Rc5 {[%clk 0:02:53]} 21. Rad1 {[%clk 0:02:53]}  Rfc8 {[%clk 0:02:54]} 22. e4 {[%clk 0:02:53]}  f5 {[%clk 0:02:47]} 23. e5 {[%clk 0:02:38]}  dxe5 {[%clk 0:02:43]} 24. Rxc5 {[%clk 0:02:39]}  Rxc5 {[%clk 0:02:43]} 25. Rd7 {[%clk 0:02:39]}  b5 {[%clk 0:02:38]} 26. Rxe7+ {[%clk 0:02:33]}  Kf6 {[%clk 0:02:38]} 27. Rxa7 {[%clk 0:02:31]}  bxc4 {[%clk 0:02:39]} 28. bxc4 {[%clk 0:02:29]}  Rxc4 {[%clk 0:02:39]} 29. f4 {[%clk 0:02:08]}  Rxf4 {[%clk 0:02:36]} 30. Rxh7 {[%clk 0:02:07]}  Ra4 {[%clk 0:02:36]} 31. h4 {[%clk 0:02:03]}  Rxa2 {[%clk 0:02:36]} 32. h5 {[%clk 0:02:03]}  g5 {[%clk 0:02:26]} 33. h6 {[%clk 0:02:04]}  e4 {[%clk 0:02:20]} 34. Rb7 {[%clk 0:01:52]}  Ra8 {[%clk 0:02:08]} 35. h7 {[%clk 0:01:33]}  Rh8 {[%clk 0:02:07]} 36. Kf2 {[%clk 0:01:10]}  Kg6 {[%clk 0:02:07]} 37. Ke3 {[%clk 0:01:05]}  Rxh7 {[%clk 0:02:05]} 38. Rb6+ {[%clk 0:01:06]}  Kh5 {[%clk 0:02:06]} 39. Rb7 {[%clk 0:00:55]}  Rxb7 {[%clk 0:02:05]} 0-1


[Site "https://www.chess.com"]

[Event "Titled Tuesday Blitz January 25 2022"]
[White "Sarana, Alexey"]
[Black "Garcia Martin, Marta"]
[WhiteFideId "24133795"]
[BlackFideId "32084030"]
[WhiteElo "2665"]
[BlackElo "2102"]
[Result "1-0"]
[Round "10"]
[TimeControl "180+1"]
[Date "2022.01.26"]
[WhiteClock "0:00:03"]
[BlackClock "0:00:02"]

1. d4 {[%clk 0:03:00]}  b6 {[%clk 0:02:55]} 2. c4 {[%clk 0:03:01]}  Bb7 {[%clk 0:02:55]} 3. Nc3 {[%clk 0:02:58]}  e6 {[%clk 0:02:55]} 4. e4 {[%clk 0:02:43]}  Bb4 {[%clk 0:02:51]} 5. Bd3 {[%clk 0:02:41]}  f5 {[%clk 0:02:46]} 6. d5 {[%clk 0:02:32]}  fxe4 {[%clk 0:02:41]} 7. Bxe4 {[%clk 0:02:32]}  Nf6 {[%clk 0:02:41]} 8. Bf3 {[%clk 0:02:33]}  exd5 {[%clk 0:02:35]} 9. cxd5 {[%clk 0:02:30]}  Bxc3+ {[%clk 0:02:32]} 10. bxc3 {[%clk 0:02:29]}  O-O {[%clk 0:02:33]} 11. Ne2 {[%clk 0:02:30]}  Na6 {[%clk 0:02:23]} 12. O-O {[%clk 0:02:27]}  Nc5 {[%clk 0:02:23]} 13. c4 {[%clk 0:02:27]}  Nfe4 {[%clk 0:01:45]} 14. Nd4 {[%clk 0:02:17]}  Qf6 {[%clk 0:01:40]} 15. Be3 {[%clk 0:02:14]}  Rae8 {[%clk 0:01:40]} 16. Qc2 {[%clk 0:02:09]}  Qg6 {[%clk 0:01:13]} 17. Rae1 {[%clk 0:01:58]}  Bc8 {[%clk 0:01:05]} 18. Bxe4 {[%clk 0:01:51]}  Qxe4 {[%clk 0:00:57]} 19. Qxe4 {[%clk 0:01:49]}  Rxe4 {[%clk 0:00:58]} 20. f3 {[%clk 0:01:49]}  Ree8 {[%clk 0:00:56]} 21. Bf2 {[%clk 0:01:16]}  Ba6 {[%clk 0:00:51]} 22. Rc1 {[%clk 0:01:06]}  Nd3 {[%clk 0:00:47]} 23. Rc3 {[%clk 0:01:03]}  Nxf2 {[%clk 0:00:44]} 24. Kxf2 {[%clk 0:01:03]}  Rf4 {[%clk 0:00:37]} 25. Rd1 {[%clk 0:00:57]}  Ree4 {[%clk 0:00:30]} 26. Ra3 {[%clk 0:00:15]}  Bxc4 {[%clk 0:00:26]} 27. Nc2 {[%clk 0:00:13]}  Re2+ {[%clk 0:00:24]} 28. Kg3 {[%clk 0:00:13]}  Rf6 {[%clk 0:00:19]} 29. Ne3 {[%clk 0:00:14]}  Bb5 {[%clk 0:00:15]} 30. h4 {[%clk 0:00:14]}  h6 {[%clk 0:00:14]} 31. Ng4 {[%clk 0:00:10]}  Rd6 {[%clk 0:00:10]} 32. Rxa7 {[%clk 0:00:10]}  h5 {[%clk 0:00:09]} 33. a4 {[%clk 0:00:04]}  Bc4 {[%clk 0:00:06]} 34. Rxc7 {[%clk 0:00:04]}  Bxd5 {[%clk 0:00:06]} 35. Nf2 {[%clk 0:00:02]}  Rg6+ {[%clk 0:00:06]} 36. Kf4 {[%clk 0:00:02]}  Rxf2 {[%clk 0:00:03]} 37. Rxd5 {[%clk 0:00:03]}  Rfxg2 {[%clk 0:00:03]} 38. Rxh5 {[%clk 0:00:03]}  Rf6+ {[%clk 0:00:03]} 39. Ke3 {[%clk 0:00:02]}  Re6+ {[%clk 0:00:02]} 40. Kf4 {[%clk 0:00:02]}  Rf6+ {[%clk 0:00:03]} 41. Rf5 {[%clk 0:00:03]}  Rxf5+ {[%clk 0:00:03]} 42. Kxf5 {[%clk 0:00:04]}  Rf2 {[%clk 0:00:02]} 43. Kf4 {[%clk 0:00:04]}  Ra2 {[%clk 0:00:02]} 44. Rc4 {[%clk 0:00:04]}  Ra3 {[%clk 0:00:02]} 45. Rd4 {[%clk 0:00:04]}  Kh7 {[%clk 0:00:02]} 46. Kg4 {[%clk 0:00:04]}  Ra2 {[%clk 0:00:02]} 47. f4 {[%clk 0:00:05]}  d5 {[%clk 0:00:03]} 48. h5 {[%clk 0:00:04]}  Ra3 {[%clk 0:00:03]} 49. Kg5 {[%clk 0:00:05]}  Ra2 {[%clk 0:00:04]} 50. Kf5 {[%clk 0:00:04]}  Rh2 {[%clk 0:00:04]} 51. Ke6 {[%clk 0:00:03]}  Rxh5 {[%clk 0:00:04]} 52. f5 {[%clk 0:00:04]}  Kg8 {[%clk 0:00:03]} 53. Rxd5 {[%clk 0:00:04]}  Kh7 {[%clk 0:00:04]} 54. Rd4 {[%clk 0:00:03]}  g6 {[%clk 0:00:03]} 55. f6 {[%clk 0:00:03]}  g5 {[%clk 0:00:02]} 56. Kf7 {[%clk 0:00:03]}  g4 {[%clk 0:00:02]} 57. Rxg4 {[%clk 0:00:03]}  Rf5 {[%clk 0:00:02]} 58. Rh4+ {[%clk 0:00:03]} 1-0


[Site "https://www.chess.com"]

[Event "Titled Tuesday Blitz January 25 2022"]
[White "Senthil Maran K"]
[Black "Zhukova, Natalia"]
[WhiteFideId "25035681"]
[BlackFideId "14101513"]
[WhiteElo "2194"]
[BlackElo "2296"]
[Result "1-0"]
[Round "10"]
[TimeControl "180+1"]
[Date "2022.01.26"]
[WhiteClock "0:00:36"]
[BlackClock "0:00:07"]

1. d4 {[%clk 0:03:00]}  Nf6 {[%clk 0:02:59]} 2. Nf3 {[%clk 0:03:00]}  e6 {[%clk 0:03:00]} 3. Bg5 {[%clk 0:02:53]}  d5 {[%clk 0:03:00]} 4. Nbd2 {[%clk 0:02:54]}  Nbd7 {[%clk 0:02:58]} 5. e3 {[%clk 0:02:54]}  h6 {[%clk 0:02:58]} 6. Bh4 {[%clk 0:02:53]}  Bd6 {[%clk 0:02:58]} 7. Bd3 {[%clk 0:02:53]}  b6 {[%clk 0:02:52]} 8. e4 {[%clk 0:02:53]}  dxe4 {[%clk 0:02:51]} 9. Nxe4 {[%clk 0:02:53]}  Be7 {[%clk 0:02:50]} 10. O-O {[%clk 0:02:50]}  Bb7 {[%clk 0:02:50]} 11. Nxf6+ {[%clk 0:02:41]}  Bxf6 {[%clk 0:02:49]} 12. Bg3 {[%clk 0:02:37]}  c5 {[%clk 0:02:45]} 13. dxc5 {[%clk 0:02:34]}  Nxc5 {[%clk 0:02:40]} 14. Bb5+ {[%clk 0:02:34]}  Ke7 {[%clk 0:02:41]} 15. Qe2 {[%clk 0:02:32]}  Ne4 {[%clk 0:01:30]} 16. Rad1 {[%clk 0:02:19]}  Nxg3 {[%clk 0:01:29]} 17. hxg3 {[%clk 0:02:15]}  Qc8 {[%clk 0:01:30]} 18. Rd7+ {[%clk 0:02:09]}  Kf8 {[%clk 0:01:30]} 19. Ne5 {[%clk 0:01:57]}  Bxe5 {[%clk 0:01:22]} 20. Qxe5 {[%clk 0:01:52]}  a6 {[%clk 0:01:08]} 21. Qf4 {[%clk 0:01:28]}  Qe8 {[%clk 0:01:04]} 22. Rxb7 {[%clk 0:01:09]}  axb5 {[%clk 0:01:03]} 23. Rd1 {[%clk 0:01:09]}  g6 {[%clk 0:00:19]} 24. Rdd7 {[%clk 0:01:04]}  Rh7 {[%clk 0:00:18]} 25. a3 {[%clk 0:01:04]}  Kg8 {[%clk 0:00:17]} 26. Qd6 {[%clk 0:01:01]}  Qf8 {[%clk 0:00:16]} 27. Qxb6 {[%clk 0:00:59]}  h5 {[%clk 0:00:15]} 28. Qd6 {[%clk 0:00:51]}  Qh6 {[%clk 0:00:11]} 29. Qf4 {[%clk 0:00:48]}  Qf8 {[%clk 0:00:10]} 30. Rxb5 {[%clk 0:00:45]}  Qc8 {[%clk 0:00:09]} 31. Rbb7 {[%clk 0:00:41]}  Qxc2 {[%clk 0:00:07]} 32. Rxf7 {[%clk 0:00:36]} 1-0


[Site "https://www.chess.com"]

[Event "Titled Tuesday Blitz January 25 2022"]
[White "Seul, Georg"]
[Black "Goncalves, Davi Sulzbacher"]
[WhiteFideId "4601653"]
[BlackFideId "2154510"]
[WhiteElo "2271"]
[BlackElo "2107"]
[Result "1-0"]
[Round "10"]
[TimeControl "180+1"]
[Date "2022.01.26"]
[WhiteClock "0:01:17"]
[BlackClock "0:00:21"]

1. e4 {[%clk 0:03:00]}  c5 {[%clk 0:02:59]} 2. d3 {[%clk 0:02:59]}  Nc6 {[%clk 0:02:59]} 3. f4 {[%clk 0:03:00]}  d5 {[%clk 0:02:56]} 4. Be2 {[%clk 0:02:59]}  e5 {[%clk 0:02:52]} 5. Nf3 {[%clk 0:02:59]}  dxe4 {[%clk 0:02:51]} 6. dxe4 {[%clk 0:02:59]}  Qxd1+ {[%clk 0:02:50]} 7. Bxd1 {[%clk 0:02:59]}  Bd6 {[%clk 0:02:47]} 8. f5 {[%clk 0:02:58]}  Nf6 {[%clk 0:02:23]} 9. Nbd2 {[%clk 0:02:54]}  Ke7 {[%clk 0:02:15]} 10. c3 {[%clk 0:02:54]}  b6 {[%clk 0:02:13]} 11. Bc2 {[%clk 0:02:50]}  Ba6 {[%clk 0:02:11]} 12. Nf1 {[%clk 0:02:40]}  h6 {[%clk 0:02:01]} 13. Ne3 {[%clk 0:02:37]}  Na5 {[%clk 0:01:56]} 14. b3 {[%clk 0:02:33]}  c4 {[%clk 0:01:51]} 15. b4 {[%clk 0:02:33]}  Nc6 {[%clk 0:01:49]} 16. a4 {[%clk 0:02:27]}  Bb7 {[%clk 0:01:25]} 17. Nxc4 {[%clk 0:02:26]}  Rac8 {[%clk 0:01:21]} 18. Nxd6 {[%clk 0:02:21]}  Kxd6 {[%clk 0:01:20]} 19. Ba3 {[%clk 0:02:14]}  Kc7 {[%clk 0:01:06]} 20. O-O-O {[%clk 0:02:09]}  Rhe8 {[%clk 0:00:59]} 21. Rhe1 {[%clk 0:02:07]}  a6 {[%clk 0:00:59]} 22. b5 {[%clk 0:02:00]}  Na5 {[%clk 0:00:53]} 23. Bd6+ {[%clk 0:01:59]}  Kd8 {[%clk 0:00:49]} 24. Nxe5 {[%clk 0:01:44]}  Rxe5 {[%clk 0:00:22]} 25. Bxe5+ {[%clk 0:01:43]}  Ke7 {[%clk 0:00:23]} 26. Bd6+ {[%clk 0:01:40]}  Ke8 {[%clk 0:00:23]} 27. Bb4 {[%clk 0:01:26]}  Nc4 {[%clk 0:00:22]} 28. bxa6 {[%clk 0:01:25]}  Bxa6 {[%clk 0:00:22]} 29. e5 {[%clk 0:01:25]}  Nd7 {[%clk 0:00:23]} 30. e6 {[%clk 0:01:24]}  Nc5 {[%clk 0:00:22]} 31. Bxc5 {[%clk 0:01:22]}  Rxc5 {[%clk 0:00:22]} 32. Bb3 {[%clk 0:01:18]}  Na5 {[%clk 0:00:21]} 33. exf7+ {[%clk 0:01:17]} 1-0


[Site "https://www.chess.com"]

[Event "Titled Tuesday Blitz January 25 2022"]
[White "Sjugirov, Sanan"]
[Black "Jobava, Baadur"]
[WhiteFideId "4189302"]
[BlackFideId "13601520"]
[WhiteElo "2602"]
[BlackElo "2617"]
[Result "1-0"]
[Round "10"]
[TimeControl "180+1"]
[Date "2022.01.26"]
[WhiteClock "0:01:52"]
[BlackClock "0:00:45"]

1. e4 {[%clk 0:03:00]}  c6 {[%clk 0:02:58]} 2. Nf3 {[%clk 0:02:58]}  d5 {[%clk 0:02:59]} 3. d3 {[%clk 0:02:58]}  Bg4 {[%clk 0:03:00]} 4. h3 {[%clk 0:02:57]}  Bxf3 {[%clk 0:03:00]} 5. Qxf3 {[%clk 0:02:57]}  e6 {[%clk 0:03:01]} 6. g3 {[%clk 0:02:54]}  Nd7 {[%clk 0:03:01]} 7. Bg2 {[%clk 0:02:54]}  g6 {[%clk 0:03:02]} 8. O-O {[%clk 0:02:49]}  h5 {[%clk 0:03:02]} 9. Qe2 {[%clk 0:02:41]}  dxe4 {[%clk 0:03:00]} 10. dxe4 {[%clk 0:02:40]}  h4 {[%clk 0:02:59]} 11. g4 {[%clk 0:02:37]}  e5 {[%clk 0:02:59]} 12. Nd2 {[%clk 0:02:33]}  Bh6 {[%clk 0:02:58]} 13. Nc4 {[%clk 0:02:30]}  Qe7 {[%clk 0:02:56]} 14. Bxh6 {[%clk 0:02:22]}  Nxh6 {[%clk 0:02:56]} 15. Rad1 {[%clk 0:02:22]}  O-O {[%clk 0:02:54]} 16. Qd2 {[%clk 0:02:22]}  b5 {[%clk 0:02:42]} 17. Na5 {[%clk 0:02:20]}  Nc5 {[%clk 0:01:49]} 18. Qxh6 {[%clk 0:02:18]}  Qc7 {[%clk 0:01:49]} 19. Nb3 {[%clk 0:02:11]}  Ne6 {[%clk 0:01:50]} 20. Qxh4 {[%clk 0:02:11]}  Nf4 {[%clk 0:01:48]} 21. Nc1 {[%clk 0:02:06]}  Kg7 {[%clk 0:01:47]} 22. Qg3 {[%clk 0:02:03]}  Rh8 {[%clk 0:01:47]} 23. Rfe1 {[%clk 0:02:02]}  g5 {[%clk 0:01:37]} 24. Nd3 {[%clk 0:02:01]}  Ng6 {[%clk 0:01:37]} 25. Qe3 {[%clk 0:01:55]}  Qe7 {[%clk 0:01:26]} 26. Nc1 {[%clk 0:01:55]}  Qf6 {[%clk 0:00:55]} 27. Ne2 {[%clk 0:01:54]}  a5 {[%clk 0:00:49]} 28. Ng3 {[%clk 0:01:54]}  Nf4 {[%clk 0:00:47]} 29. Nf5+ {[%clk 0:01:54]}  Kg6 {[%clk 0:00:45]} 30. Rd6 {[%clk 0:01:52]}  Ne6 {[%clk 0:00:45]} 1-0


[Site "https://www.chess.com"]

[Event "Titled Tuesday Blitz January 25 2022"]
[White "Stribuk, Artiom"]
[Black "Song, Michael"]
[WhiteFideId "13515659"]
[BlackFideId "2613190"]
[WhiteElo "2224"]
[BlackElo "2274"]
[Result "1-0"]
[Round "10"]
[TimeControl "180+1"]
[Date "2022.01.26"]
[WhiteClock "0:00:06"]
[BlackClock "0:00:09"]

1. d4 {[%clk 0:02:52]}  Nf6 {[%clk 0:02:58]} 2. c4 {[%clk 0:02:48]}  e6 {[%clk 0:02:58]} 3. g3 {[%clk 0:02:48]}  d5 {[%clk 0:02:58]} 4. Nf3 {[%clk 0:02:48]}  Be7 {[%clk 0:02:58]} 5. Bg2 {[%clk 0:02:48]}  O-O {[%clk 0:02:58]} 6. O-O {[%clk 0:02:48]}  c6 {[%clk 0:02:59]} 7. Qc2 {[%clk 0:02:47]}  Nbd7 {[%clk 0:02:59]} 8. Nbd2 {[%clk 0:02:46]}  b6 {[%clk 0:02:58]} 9. e4 {[%clk 0:02:45]}  dxe4 {[%clk 0:02:57]} 10. Nxe4 {[%clk 0:02:45]}  Bb7 {[%clk 0:02:57]} 11. Rd1 {[%clk 0:02:45]}  Rc8 {[%clk 0:02:54]} 12. Bf4 {[%clk 0:02:38]}  Nxe4 {[%clk 0:02:40]} 13. Qxe4 {[%clk 0:02:38]}  Nf6 {[%clk 0:02:39]} 14. Qe2 {[%clk 0:02:35]}  Bd6 {[%clk 0:02:39]} 15. Ne5 {[%clk 0:02:30]}  Qe7 {[%clk 0:02:40]} 16. a3 {[%clk 0:02:04]}  Rfd8 {[%clk 0:02:33]} 17. b4 {[%clk 0:02:03]}  c5 {[%clk 0:02:31]} 18. Bxb7 {[%clk 0:02:01]}  Qxb7 {[%clk 0:02:30]} 19. dxc5 {[%clk 0:02:02]}  bxc5 {[%clk 0:02:30]} 20. b5 {[%clk 0:01:49]}  Bxe5 {[%clk 0:02:15]} 21. Bxe5 {[%clk 0:01:49]}  Ne4 {[%clk 0:02:11]} 22. Qg4 {[%clk 0:01:33]}  f5 {[%clk 0:02:11]} 23. Qf4 {[%clk 0:01:13]}  g5 {[%clk 0:01:45]} 24. Qe3 {[%clk 0:01:10]}  g4 {[%clk 0:01:44]} 25. h3 {[%clk 0:00:47]}  h5 {[%clk 0:01:22]} 26. Qh6 {[%clk 0:00:38]}  Qh7 {[%clk 0:01:21]} 27. Qxe6+ {[%clk 0:00:37]}  Qf7 {[%clk 0:01:21]} 28. Qxf7+ {[%clk 0:00:34]}  Kxf7 {[%clk 0:01:21]} 29. hxg4 {[%clk 0:00:33]}  hxg4 {[%clk 0:01:21]} 30. Kg2 {[%clk 0:00:20]}  Ke6 {[%clk 0:01:21]} 31. Bf4 {[%clk 0:00:18]}  Rd4 {[%clk 0:01:17]} 32. Rac1 {[%clk 0:00:16]}  Rcd8 {[%clk 0:01:16]} 33. Rh1 {[%clk 0:00:17]}  Rd3 {[%clk 0:01:13]} 34. Rh6+ {[%clk 0:00:16]}  Kf7 {[%clk 0:01:08]} 35. Rh7+ {[%clk 0:00:16]}  Kg8 {[%clk 0:01:02]} 36. Rch1 {[%clk 0:00:16]}  R8d7 {[%clk 0:01:01]} 37. Rh8+ {[%clk 0:00:16]}  Kf7 {[%clk 0:01:00]} 38. R1h7+ {[%clk 0:00:15]}  Kg6 {[%clk 0:00:53]} 39. Rh6+ {[%clk 0:00:14]}  Kf7 {[%clk 0:00:54]} 40. R8h7+ {[%clk 0:00:15]}  Kg8 {[%clk 0:00:54]} 41. Rxd7 {[%clk 0:00:14]}  Rxd7 {[%clk 0:00:55]} 42. Rc6 {[%clk 0:00:14]}  Kf7 {[%clk 0:00:51]} 43. a4 {[%clk 0:00:13]}  Rd4 {[%clk 0:00:26]} 44. Rc7+ {[%clk 0:00:12]}  Ke6 {[%clk 0:00:25]} 45. Rxa7 {[%clk 0:00:13]}  Rxc4 {[%clk 0:00:24]} 46. b6 {[%clk 0:00:13]}  Rb4 {[%clk 0:00:15]} 47. a5 {[%clk 0:00:11]}  c4 {[%clk 0:00:14]} 48. b7 {[%clk 0:00:10]}  Nd6 {[%clk 0:00:11]} 49. a6 {[%clk 0:00:06]}  c3 {[%clk 0:00:11]} 50. Bxd6 {[%clk 0:00:06]}  Kxd6 {[%clk 0:00:10]} 51. Ra8 {[%clk 0:00:06]}  c2 {[%clk 0:00:09]} 52. Rc8 {[%clk 0:00:06]} 1-0


[Site "https://www.chess.com"]

[Event "Titled Tuesday Blitz January 25 2022"]
[White "Sumaneev, Dmitry"]
[Black "Djidjeli, Sarah"]
[WhiteFideId "4125312"]
[BlackFideId "36067474"]
[WhiteElo "2553"]
[BlackElo "1990"]
[Result "0-1"]
[Round "10"]
[TimeControl "180+1"]
[Date "2022.01.26"]
[WhiteClock "0:00:08"]
[BlackClock "0:00:21"]

1. e4 {[%clk 0:02:55]}  c5 {[%clk 0:02:59]} 2. c3 {[%clk 0:02:55]}  d5 {[%clk 0:02:57]} 3. exd5 {[%clk 0:02:56]}  Qxd5 {[%clk 0:02:57]} 4. d4 {[%clk 0:02:56]}  Nc6 {[%clk 0:02:57]} 5. Nf3 {[%clk 0:02:55]}  Bg4 {[%clk 0:02:58]} 6. Be2 {[%clk 0:02:55]}  e6 {[%clk 0:02:54]} 7. O-O {[%clk 0:02:54]}  Bd6 {[%clk 0:02:53]} 8. h3 {[%clk 0:02:49]}  Bh5 {[%clk 0:02:51]} 9. c4 {[%clk 0:02:35]}  Qf5 {[%clk 0:02:50]} 10. dxc5 {[%clk 0:01:51]}  Bxc5 {[%clk 0:02:47]} 11. Nc3 {[%clk 0:01:52]}  Nge7 {[%clk 0:02:39]} 12. Na4 {[%clk 0:01:29]}  Bb4 {[%clk 0:02:37]} 13. a3 {[%clk 0:01:27]}  Ba5 {[%clk 0:02:36]} 14. b4 {[%clk 0:01:27]}  Bc7 {[%clk 0:02:36]} 15. Nc5 {[%clk 0:01:23]}  Bxf3 {[%clk 0:02:09]} 16. Bxf3 {[%clk 0:01:13]}  Rd8 {[%clk 0:02:01]} 17. Qe1 {[%clk 0:00:56]}  Nd4 {[%clk 0:01:59]} 18. Qe4 {[%clk 0:00:55]}  Nxf3+ {[%clk 0:01:57]} 19. Qxf3 {[%clk 0:00:55]}  Qe5 {[%clk 0:01:57]} 20. g3 {[%clk 0:00:48]}  Qxa1 {[%clk 0:01:56]} 21. Bf4 {[%clk 0:00:48]}  Qf6 {[%clk 0:01:50]} 22. Qxb7 {[%clk 0:00:47]}  Bxf4 {[%clk 0:01:47]} 23. Qb5+ {[%clk 0:00:47]}  Kf8 {[%clk 0:01:40]} 24. Nd7+ {[%clk 0:00:47]}  Rxd7 {[%clk 0:01:40]} 25. Qxd7 {[%clk 0:00:47]}  g6 {[%clk 0:01:34]} 26. gxf4 {[%clk 0:00:44]}  Qxf4 {[%clk 0:01:34]} 27. Qd8+ {[%clk 0:00:39]}  Kg7 {[%clk 0:01:33]} 28. Qxe7 {[%clk 0:00:40]}  Qxc4 {[%clk 0:01:33]} 29. Qd6 {[%clk 0:00:32]}  Qc3 {[%clk 0:01:31]} 30. Rd1 {[%clk 0:00:27]}  Rc8 {[%clk 0:01:20]} 31. Rd3 {[%clk 0:00:22]}  Qe1+ {[%clk 0:01:20]} 32. Kg2 {[%clk 0:00:20]}  Qe4+ {[%clk 0:01:18]} 33. Kg3 {[%clk 0:00:19]}  Rc4 {[%clk 0:01:13]} 34. b5 {[%clk 0:00:15]}  Qh4+ {[%clk 0:01:12]} 35. Kg2 {[%clk 0:00:14]}  Qe4+ {[%clk 0:01:09]} 36. Kg3 {[%clk 0:00:13]}  h5 {[%clk 0:01:04]} 37. Re3 {[%clk 0:00:08]}  h4+ {[%clk 0:01:02]} 38. Kh2 {[%clk 0:00:08]}  Qf5 {[%clk 0:00:56]} 39. Qe5+ {[%clk 0:00:08]}  Qxe5+ {[%clk 0:00:56]} 40. Rxe5 {[%clk 0:00:09]}  Rc2 {[%clk 0:00:53]} 41. Kg2 {[%clk 0:00:08]}  Rc3 {[%clk 0:00:50]} 42. a4 {[%clk 0:00:08]}  Rc4 {[%clk 0:00:48]} 43. a5 {[%clk 0:00:08]}  Ra4 {[%clk 0:00:46]} 44. a6 {[%clk 0:00:07]}  Rb4 {[%clk 0:00:46]} 45. Rc5 {[%clk 0:00:07]}  Kf6 {[%clk 0:00:43]} 46. Rc7 {[%clk 0:00:06]}  Rxb5 {[%clk 0:00:43]} 47. Rxa7 {[%clk 0:00:07]}  Ra5 {[%clk 0:00:44]} 48. Kf3 {[%clk 0:00:05]}  Ra3+ {[%clk 0:00:42]} 49. Kg2 {[%clk 0:00:05]}  Kg5 {[%clk 0:00:42]} 50. Rxf7 {[%clk 0:00:04]}  Rxa6 {[%clk 0:00:41]} 51. Rf3 {[%clk 0:00:04]}  e5 {[%clk 0:00:41]} 52. Rf8 {[%clk 0:00:03]}  Ra2 {[%clk 0:00:40]} 53. Re8 {[%clk 0:00:02]}  Kf4 {[%clk 0:00:40]} 54. Rf8+ {[%clk 0:00:03]}  Ke4 {[%clk 0:00:40]} 55. Rg8 {[%clk 0:00:03]}  Ra6 {[%clk 0:00:40]} 56. Rh8 {[%clk 0:00:03]}  g5 {[%clk 0:00:40]} 57. Rg8 {[%clk 0:00:02]}  Kf5 {[%clk 0:00:37]} 58. Rf8+ {[%clk 0:00:03]}  Rf6 {[%clk 0:00:38]} 59. Re8 {[%clk 0:00:03]}  e4 {[%clk 0:00:37]} 60. Re7 {[%clk 0:00:02]}  Kf4 {[%clk 0:00:36]} 61. Re8 {[%clk 0:00:02]}  Rf5 {[%clk 0:00:34]} 62. Re7 {[%clk 0:00:02]}  Rf6 {[%clk 0:00:34]} 63. Re8 {[%clk 0:00:02]}  Kf5 {[%clk 0:00:35]} 64. Re7 {[%clk 0:00:03]}  Rb6 {[%clk 0:00:34]} 65. Rf7+ {[%clk 0:00:02]}  Kg6 {[%clk 0:00:33]} 66. Re7 {[%clk 0:00:02]}  Rb4 {[%clk 0:00:33]} 67. Re8 {[%clk 0:00:02]}  Kf6 {[%clk 0:00:33]} 68. Rf8+ {[%clk 0:00:02]}  Kg6 {[%clk 0:00:32]} 69. Re8 {[%clk 0:00:02]}  Kf7 {[%clk 0:00:23]} 70. Re5 {[%clk 0:00:02]}  Kf6 {[%clk 0:00:20]} 71. Re8 {[%clk 0:00:02]}  Rc4 {[%clk 0:00:20]} 72. Rf8+ {[%clk 0:00:02]}  Ke7 {[%clk 0:00:19]} 73. Rg8 {[%clk 0:00:02]}  Rc5 {[%clk 0:00:20]} 74. Rg7+ {[%clk 0:00:02]}  Kd6 {[%clk 0:00:20]} 75. Rg8 {[%clk 0:00:01]}  Rf5 {[%clk 0:00:20]} 76. Rd8+ {[%clk 0:00:01]}  Kc5 {[%clk 0:00:20]} 77. Re8 {[%clk 0:00:02]}  Kd4 {[%clk 0:00:20]} 78. Rd8+ {[%clk 0:00:03]}  Kc3 {[%clk 0:00:20]} 79. Re8 {[%clk 0:00:03]}  Kd3 {[%clk 0:00:21]} 80. Rd8+ {[%clk 0:00:04]}  Ke2 {[%clk 0:00:21]} 81. Re8 {[%clk 0:00:04]}  Rxf2+ {[%clk 0:00:21]} 82. Kg1 {[%clk 0:00:03]}  e3 {[%clk 0:00:21]} 83. Re5 {[%clk 0:00:03]}  Rf3 {[%clk 0:00:18]} 84. Rxg5 {[%clk 0:00:03]}  Rg3+ {[%clk 0:00:17]} 85. Rxg3 {[%clk 0:00:02]}  hxg3 {[%clk 0:00:18]} 86. Kg2 {[%clk 0:00:03]}  Kd2 {[%clk 0:00:18]} 87. h4 {[%clk 0:00:04]}  e2 {[%clk 0:00:19]} 88. h5 {[%clk 0:00:05]}  e1=Q {[%clk 0:00:19]} 89. h6 {[%clk 0:00:06]}  Qe6 {[%clk 0:00:19]} 90. h7 {[%clk 0:00:07]}  Qh6 {[%clk 0:00:20]} 91. h8=Q {[%clk 0:00:08]}  Qxh8 {[%clk 0:00:21]} 0-1


[Site "https://www.chess.com"]